[Event "*** Titled Tuesday Blitz"]
[Site "Chess.com"]
[Date "2020.10.27"]
[Round "3"]
[White "Smirnov_Pavel"]
[Black "Caterpiller35"]
[Result "1-0"]
[WhiteElo "2858"]
[BlackElo "2464"]
[TimeControl "180+1"]
[EndTime "10:27:30 PDT"]
[Termination "Smirnov_Pavel won by checkmate"]

1. d4 {[%clk 0:03:00.9]} 1... Nf6 {[%clk 0:02:58.3]} 2. c4 {[%clk 0:03:00.7]}
2... e6 {[%clk 0:02:58.5]} 3. Nf3 {[%clk 0:02:59.9]} 3... b6 {[%clk 0:02:58.6]}
4. g3 {[%clk 0:02:59.5]} 4... Ba6 {[%clk 0:02:58.8]} 5. b3 {[%clk 0:02:58.8]}
5... b5 {[%clk 0:02:56.7]} 6. cxb5 {[%clk 0:02:52.9]} 6... Bxb5 {[%clk
0:02:57.6]} 7. Bg2 {[%clk 0:02:53.3]} 7... Bc6 {[%clk 0:02:57.5]} 8. O-O {[%clk
0:02:53.6]} 8... a5 {[%clk 0:02:57.7]} 9. Nc3 {[%clk 0:02:49.1]} 9... Bb4 {[%clk
0:02:57.2]} 10. Bb2 {[%clk 0:02:46.7]} 10... Qc8 {[%clk 0:02:56.7]} 11. Qc2
{[%clk 0:02:44.2]} 11... Qa6 {[%clk 0:02:55.3]} 12. Na4 {[%clk 0:02:34.9]} 12...
O-O {[%clk 0:02:48.5]} 13. Ne5 {[%clk 0:02:31.2]} 13... Bxg2 {[%clk 0:02:46.9]}
14. Kxg2 {[%clk 0:02:32.1]} 14... d6 {[%clk 0:02:42.9]} 15. Nf3 {[%clk
0:02:28.2]} 15... d5 {[%clk 0:02:24.2]} 16. Nc5 {[%clk 0:02:12.8]} 16... Bxc5
{[%clk 0:02:23.6]} 17. dxc5 {[%clk 0:02:13.4]} 17... Ne4 {[%clk 0:02:19]} 18.
Nd4 {[%clk 0:02:09.6]} 18... Nc6 {[%clk 0:02:17.4]} 19. f3 {[%clk 0:02:05.7]}
19... Nb4 {[%clk 0:01:57.5]} 20. Qd1 {[%clk 0:01:37.8]} 20... Nxc5 {[%clk
0:01:56.5]} 21. Rc1 {[%clk 0:01:28.8]} 21... Nd7 {[%clk 0:01:16.7]} 22. Rxc7
{[%clk 0:01:19]} 22... Qd6 {[%clk 0:00:41.2]} 23. Nb5 {[%clk 0:01:17]} 23... Qa6
{[%clk 0:00:33.8]} 24. a4 {[%clk 0:00:58.3]} 24... Nf6 {[%clk 0:00:33.4]} 25.
Qd4 {[%clk 0:00:53.6]} 25... Rac8 {[%clk 0:00:21.7]} 26. Rfc1 {[%clk 0:00:50]}
26... Rxc7 {[%clk 0:00:18.6]} 27. Rxc7 {[%clk 0:00:50.9]} 27... Rc8 {[%clk
0:00:17.8]} 28. Qc5 {[%clk 0:00:44.7]} 28... Rxc7 {[%clk 0:00:13.6]} 29. Qxc7
{[%clk 0:00:45.6]} 29... h6 {[%clk 0:00:12.8]} 30. Qd8+ {[%clk 0:00:37.7]} 30...
Kh7 {[%clk 0:00:12.6]} 31. Bxf6 {[%clk 0:00:37.8]} 31... g6 {[%clk 0:00:09.5]}
32. Qh8# {[%clk 0:00:36.9]} 1-0

[Event "*** Titled Tuesday Blitz"]
[Site "Chess.com"]
[Date "2020.10.27"]
[Round "3"]
[White "ftorodent"]
[Black "GM_Levan_Pantsulaia"]
[Result "1-0"]
[WhiteElo "2680"]
[BlackElo "2852"]
[TimeControl "180+1"]
[EndTime "10:27:34 PDT"]
[Termination "ftorodent won by resignation"]

1. d4 {[%clk 0:03:00.9]} 1... Nf6 {[%clk 0:02:59.5]} 2. c4 {[%clk 0:03:00.7]}
2... c5 {[%clk 0:02:59.8]} 3. d5 {[%clk 0:03:00.5]} 3... e6 {[%clk 0:03:00.2]}
4. Nc3 {[%clk 0:03:00.1]} 4... exd5 {[%clk 0:03:00.8]} 5. cxd5 {[%clk
0:03:00.4]} 5... d6 {[%clk 0:03:01.4]} 6. Nf3 {[%clk 0:03:00.8]} 6... g6 {[%clk
0:03:01]} 7. Bf4 {[%clk 0:03:00.7]} 7... a6 {[%clk 0:02:57]} 8. a4 {[%clk
0:03:00]} 8... Bg7 {[%clk 0:02:55.9]} 9. h3 {[%clk 0:03:00]} 9... O-O {[%clk
0:02:53.1]} 10. e3 {[%clk 0:03:00]} 10... Re8 {[%clk 0:02:53.3]} 11. Nd2 {[%clk
0:02:58.9]} 11... Nbd7 {[%clk 0:02:53.4]} 12. Be2 {[%clk 0:02:58.5]} 12... Ne5
{[%clk 0:02:52.2]} 13. O-O {[%clk 0:02:57.1]} 13... Nfd7 {[%clk 0:02:52.2]} 14.
Bh2 {[%clk 0:02:54.2]} 14... f5 {[%clk 0:02:52.4]} 15. Qb3 {[%clk 0:02:50.2]}
15... Rb8 {[%clk 0:02:46.5]} 16. Qc2 {[%clk 0:02:40.5]} 16... Qc7 {[%clk
0:02:20.9]} 17. f4 {[%clk 0:02:31.5]} 17... Nf7 {[%clk 0:02:20.1]} 18. e4 {[%clk
0:02:31.7]} 18... Nf6 {[%clk 0:02:13.7]} 19. e5 {[%clk 0:02:11.8]} 19... dxe5
{[%clk 0:02:08.6]} 20. fxe5 {[%clk 0:02:11.9]} 20... Nxe5 {[%clk 0:02:09.5]} 21.
Nc4 {[%clk 0:02:10.7]} 21... Nfd7 {[%clk 0:02:08.9]} 22. d6 {[%clk 0:01:31.1]}
22... Qd8 {[%clk 0:01:37.8]} 23. Nd5 {[%clk 0:01:21.8]} 23... b5 {[%clk
0:01:08.9]} 24. axb5 {[%clk 0:01:21.2]} 24... axb5 {[%clk 0:01:09.8]} 25. Nxe5
{[%clk 0:01:20]} 25... Bxe5 {[%clk 0:01:10.7]} 26. Nc7 {[%clk 0:01:14.2]} 26...
Bxh2+ {[%clk 0:01:00.7]} 27. Kxh2 {[%clk 0:01:14.3]} 27... Re5 {[%clk
0:00:49.3]} 28. Bxb5 {[%clk 0:01:09.9]} 28... Nf6 {[%clk 0:00:44.2]} 29. Rfd1
{[%clk 0:00:55.2]} 29... f4 {[%clk 0:00:16.9]} 30. Qc4+ {[%clk 0:00:52.7]} 30...
Kg7 {[%clk 0:00:13.3]} 31. Ra7 {[%clk 0:00:46]} 31... Rb7 {[%clk 0:00:12.6]} 32.
Rxb7 {[%clk 0:00:45.6]} 32... Bxb7 {[%clk 0:00:13.5]} 33. Qxf4 {[%clk
0:00:43.7]} 33... Rf5 {[%clk 0:00:13.8]} 34. Ne6+ {[%clk 0:00:39.7]} 1-0

[Event "*** Titled Tuesday Blitz"]
[Site "Chess.com"]
[Date "2020.10.27"]
[Round "3"]
[White "chessdjw"]
[Black "avantage_ru"]
[Result "0-1"]
[WhiteElo "2646"]
[BlackElo "2843"]
[TimeControl "180+1"]
[EndTime "10:27:37 PDT"]
[Termination "avantage_ru won by resignation"]

1. c4 {[%clk 0:03:00.9]} 1... g6 {[%clk 0:02:57.3]} 2. d4 {[%clk 0:02:58.6]}
2... Bg7 {[%clk 0:02:57.7]} 3. Nc3 {[%clk 0:02:58.8]} 3... d6 {[%clk 0:02:57.1]}
4. e4 {[%clk 0:02:58.5]} 4... Nf6 {[%clk 0:02:57.5]} 5. Nf3 {[%clk 0:02:58.2]}
5... O-O {[%clk 0:02:57.5]} 6. Be2 {[%clk 0:02:58.6]} 6... c6 {[%clk 0:02:56.9]}
7. O-O {[%clk 0:02:58.5]} 7... e5 {[%clk 0:02:57]} 8. d5 {[%clk 0:02:58.3]} 8...
Na6 {[%clk 0:02:56.1]} 9. Be3 {[%clk 0:02:54.9]} 9... Ng4 {[%clk 0:02:55.4]} 10.
Bg5 {[%clk 0:02:55.4]} 10... f6 {[%clk 0:02:55.3]} 11. Bh4 {[%clk 0:02:54.8]}
11... c5 {[%clk 0:02:55.2]} 12. Ne1 {[%clk 0:02:52.2]} 12... h5 {[%clk
0:02:53.7]} 13. h3 {[%clk 0:02:51]} 13... Nh6 {[%clk 0:02:53]} 14. Nd3 {[%clk
0:02:51]} 14... Bd7 {[%clk 0:02:47.2]} 15. a3 {[%clk 0:02:50.7]} 15... b6 {[%clk
0:02:45.5]} 16. b4 {[%clk 0:02:50.3]} 16... Qe7 {[%clk 0:02:40.5]} 17. Rb1
{[%clk 0:02:46.1]} 17... Nf7 {[%clk 0:02:36.6]} 18. bxc5 {[%clk 0:02:37.2]}
18... Nxc5 {[%clk 0:02:35.1]} 19. Nxc5 {[%clk 0:02:37.1]} 19... bxc5 {[%clk
0:02:33.2]} 20. Rb7 {[%clk 0:02:32.4]} 20... Rfc8 {[%clk 0:02:26.6]} 21. Qb3
{[%clk 0:02:30.2]} 21... Nd8 {[%clk 0:02:25.7]} 22. Rb5 {[%clk 0:01:52.5]} 22...
Bh6 {[%clk 0:02:16.1]} 23. Ra5 {[%clk 0:01:47.3]} 23... Rcb8 {[%clk 0:02:10.7]}
24. Qc2 {[%clk 0:01:46.7]} 24... a6 {[%clk 0:02:07.7]} 25. Bd3 {[%clk
0:01:21.1]} 25... Nb7 {[%clk 0:02:03.7]} 26. Ra4 {[%clk 0:01:20.7]} 26... Kg7
{[%clk 0:02:03.2]} 27. Rb1 {[%clk 0:01:14.9]} 27... Bxa4 {[%clk 0:01:59.7]} 28.
Qxa4 {[%clk 0:01:15.8]} 28... Nd8 {[%clk 0:01:54.7]} 29. Rxb8 {[%clk 0:01:14.8]}
29... Rxb8 {[%clk 0:01:55.6]} 30. Nd1 {[%clk 0:00:56.9]} 30... Rb6 {[%clk
0:01:50.4]} 31. Bc2 {[%clk 0:00:54.6]} 31... Nf7 {[%clk 0:01:47.2]} 32. Qa5
{[%clk 0:00:51.4]} 32... Qd8 {[%clk 0:01:45.5]} 33. Qa4 {[%clk 0:00:50.3]} 33...
Bd2 {[%clk 0:01:41.4]} 34. Kf1 {[%clk 0:00:47]} 34... Bf4 {[%clk 0:01:20.5]} 35.
Kg1 {[%clk 0:00:45.1]} 35... g5 {[%clk 0:01:19.5]} 36. Bg3 {[%clk 0:00:44.6]}
36... h4 {[%clk 0:01:19.4]} 37. Bxf4 {[%clk 0:00:41.5]} 37... exf4 {[%clk
0:01:18.2]} 38. Kh2 {[%clk 0:00:38.1]} 38... Ne5 {[%clk 0:01:16.3]} 39. f3
{[%clk 0:00:38.5]} 39... Qd7 {[%clk 0:01:11.9]} 40. Qa5 {[%clk 0:00:37.4]} 40...
Nxc4 {[%clk 0:01:11.2]} 41. Qc3 {[%clk 0:00:35.2]} 41... Ne5 {[%clk 0:01:10.4]}
42. Nf2 {[%clk 0:00:35.4]} 42... Qb5 {[%clk 0:01:08.5]} 43. Ng4 {[%clk
0:00:34.5]} 43... Qb2 {[%clk 0:00:59.8]} 44. Qa5 {[%clk 0:00:34.5]} 44... Nxf3+
{[%clk 0:00:57.8]} 0-1

[Event "*** Titled Tuesday Blitz"]
[Site "Chess.com"]
[Date "2020.10.27"]
[Round "3"]
[White "DenisQ"]
[Black "Manukyan_Artak"]
[Result "1-0"]
[WhiteElo "2657"]
[BlackElo "2417"]
[TimeControl "180+1"]
[EndTime "10:27:37 PDT"]
[Termination "DenisQ won by resignation"]

1. Nf3 {[%clk 0:03:00.9]} 1... c6 {[%clk 0:02:59.4]} 2. c4 {[%clk 0:03:00.1]}
2... d5 {[%clk 0:02:59.5]} 3. cxd5 {[%clk 0:03:01]} 3... cxd5 {[%clk 0:02:59.5]}
4. d4 {[%clk 0:03:01.9]} 4... Nc6 {[%clk 0:02:59.3]} 5. Nc3 {[%clk 0:03:02.8]}
5... Bg4 {[%clk 0:02:58.9]} 6. Ne5 {[%clk 0:02:34.8]} 6... Nxe5 {[%clk
0:02:57.3]} 7. dxe5 {[%clk 0:02:35.7]} 7... Be6 {[%clk 0:02:39.6]} 8. e4 {[%clk
0:02:33.4]} 8... dxe4 {[%clk 0:02:36.6]} 9. Bb5+ {[%clk 0:02:31.4]} 9... Bd7
{[%clk 0:02:36.2]} 10. e6 {[%clk 0:02:18.5]} 10... fxe6 {[%clk 0:02:29]} 11. O-O
{[%clk 0:02:08.8]} 11... Nf6 {[%clk 0:02:27]} 12. Qb3 {[%clk 0:01:53.7]} 12...
Bxb5 {[%clk 0:02:18]} 13. Nxb5 {[%clk 0:01:52.5]} 13... Rc8 {[%clk 0:02:12.4]}
14. Nxa7 {[%clk 0:01:47.9]} 14... Rc5 {[%clk 0:02:02.9]} 15. Be3 {[%clk
0:01:46.4]} 15... Rd5 {[%clk 0:02:02.3]} 16. Qxb7 {[%clk 0:01:43.1]} 16... Kf7
{[%clk 0:01:56.2]} 17. Rac1 {[%clk 0:01:40.1]} 17... h6 {[%clk 0:01:51.6]} 18.
a4 {[%clk 0:01:19.3]} 18... g5 {[%clk 0:01:50]} 19. Nc6 {[%clk 0:01:18.4]} 19...
Qd6 {[%clk 0:01:47.2]} 20. h3 {[%clk 0:01:00.6]} 20... g4 {[%clk 0:01:43.5]} 21.
h4 {[%clk 0:00:58.7]} 21... g3 {[%clk 0:01:40.1]} 22. Qb3 {[%clk 0:00:46.3]}
22... Rd3 {[%clk 0:01:15.6]} 23. Qb5 {[%clk 0:00:45.6]} 23... gxf2+ {[%clk
0:01:11.7]} 24. Bxf2 {[%clk 0:00:43.5]} 24... Rg8 {[%clk 0:01:09.2]} 25. Ne5+
{[%clk 0:00:42.8]} 25... Kg7 {[%clk 0:01:07.9]} 26. Nxd3 {[%clk 0:00:42.8]}
26... exd3 {[%clk 0:01:08.3]} 27. Rcd1 {[%clk 0:00:35.6]} 27... d2 {[%clk
0:00:59.7]} 28. Qe2 {[%clk 0:00:34]} 28... Kh7 {[%clk 0:00:39]} 29. Rxd2 {[%clk
0:00:34]} 29... Qc6 {[%clk 0:00:38.3]} 30. Bd4 {[%clk 0:00:33.8]} 30... Bg7
{[%clk 0:00:33.7]} 31. Qd3+ {[%clk 0:00:27.1]} 31... Kh8 {[%clk 0:00:33.1]} 32.
Qg6 {[%clk 0:00:25.5]} 32... Qd5 {[%clk 0:00:29.1]} 33. Bxf6 {[%clk 0:00:23.5]}
33... Qxd2 {[%clk 0:00:28.6]} 34. Bxg7+ {[%clk 0:00:21.6]} 34... Rxg7 {[%clk
0:00:26.1]} 35. Rf8+ {[%clk 0:00:21.3]} 1-0

[Event "*** Titled Tuesday Blitz"]
[Site "Chess.com"]
[Date "2020.10.27"]
[Round "3"]
[White "Triumphmate"]
[Black "Volodar_Murzin"]
[Result "1/2-1/2"]
[WhiteElo "2413"]
[BlackElo "2610"]
[TimeControl "180+1"]
[EndTime "10:27:37 PDT"]
[Termination "Game drawn by repetition"]

1. e4 {[%clk 0:03:00.9]} 1... c5 {[%clk 0:02:58.9]} 2. Nf3 {[%clk 0:03:01.3]}
2... d6 {[%clk 0:02:58.5]} 3. d4 {[%clk 0:03:02.2]} 3... cxd4 {[%clk 0:02:58.2]}
4. Nxd4 {[%clk 0:03:03.1]} 4... Nf6 {[%clk 0:02:58.3]} 5. Nc3 {[%clk 0:03:03.7]}
5... a6 {[%clk 0:02:58.5]} 6. f4 {[%clk 0:03:04]} 6... Nbd7 {[%clk 0:02:57.8]}
7. Nf3 {[%clk 0:03:04.5]} 7... e5 {[%clk 0:02:53.6]} 8. Bd3 {[%clk 0:03:05.4]}
8... b5 {[%clk 0:02:44.8]} 9. a3 {[%clk 0:03:04]} 9... Bb7 {[%clk 0:02:43.3]}
10. O-O {[%clk 0:03:03.4]} 10... Be7 {[%clk 0:02:41.7]} 11. Kh1 {[%clk
0:03:01.4]} 11... O-O {[%clk 0:02:41.1]} 12. Qe1 {[%clk 0:03:00.9]} 12... Rc8
{[%clk 0:02:40.1]} 13. Bd2 {[%clk 0:03:00.7]} 13... Qc7 {[%clk 0:02:38.1]} 14.
fxe5 {[%clk 0:02:59.5]} 14... dxe5 {[%clk 0:02:36.3]} 15. Qg3 {[%clk 0:02:59.3]}
15... Nc5 {[%clk 0:02:26.5]} 16. Qh3 {[%clk 0:02:51.2]} 16... Ncxe4 {[%clk
0:02:11.8]} 17. Nxe4 {[%clk 0:02:39.4]} 17... Bxe4 {[%clk 0:02:07.5]} 18. Bc3
{[%clk 0:02:19.4]} 18... Bxd3 {[%clk 0:01:50.1]} 19. cxd3 {[%clk 0:02:20.3]}
19... Qd7 {[%clk 0:01:50.1]} 20. Qxd7 {[%clk 0:02:07]} 20... Nxd7 {[%clk
0:01:45.9]} 21. Nxe5 {[%clk 0:02:07.5]} 21... Nxe5 {[%clk 0:01:41.6]} 22. Bxe5
{[%clk 0:02:08.4]} 22... Rfd8 {[%clk 0:01:41.2]} 23. Rad1 {[%clk 0:02:02.4]}
23... f6 {[%clk 0:01:28.6]} 24. Bc3 {[%clk 0:02:02]} 24... Kf7 {[%clk
0:01:25.1]} 25. h3 {[%clk 0:02:00.2]} 25... Rd5 {[%clk 0:01:19.4]} 26. Rf3
{[%clk 0:01:59.1]} 26... Bxa3 {[%clk 0:01:07.7]} 27. Bxf6 {[%clk 0:01:53]} 27...
gxf6 {[%clk 0:01:07.1]} 28. bxa3 {[%clk 0:01:52.6]} 28... Rc3 {[%clk 0:01:06.9]}
29. a4 {[%clk 0:01:22]} 29... b4 {[%clk 0:01:01.2]} 30. Rb1 {[%clk 0:01:05.1]}
30... a5 {[%clk 0:00:49.9]} 31. Rf4 {[%clk 0:01:04.6]} 31... Rcxd3 {[%clk
0:00:29.2]} 32. Kh2 {[%clk 0:01:04]} 32... Rd1 {[%clk 0:00:28.5]} 33. Rb2 {[%clk
0:01:03.2]} 33... R1d4 {[%clk 0:00:26.9]} 34. Rf3 {[%clk 0:01:00.6]} 34... Rc4
{[%clk 0:00:23.4]} 35. Rbf2 {[%clk 0:00:58.6]} 35... Rc6 {[%clk 0:00:23.1]} 36.
Rb2 {[%clk 0:00:56.9]} 36... h6 {[%clk 0:00:22.1]} 37. h4 {[%clk 0:00:56.5]}
37... Kg6 {[%clk 0:00:16.6]} 38. Rg3+ {[%clk 0:00:51]} 38... Kf7 {[%clk
0:00:15.5]} 39. Rf3 {[%clk 0:00:50.7]} 39... Rc4 {[%clk 0:00:15.7]} 40. Rbf2
{[%clk 0:00:50.9]} 40... Rc6 {[%clk 0:00:13.5]} 41. Rb2 {[%clk 0:00:50.8]}
1/2-1/2

[Event "*** Titled Tuesday Blitz"]
[Site "Chess.com"]
[Date "2020.10.27"]
[Round "3"]
[White "Khnykin_Nikolay"]
[Black "ural58"]
[Result "0-1"]
[WhiteElo "2052"]
[BlackElo "2342"]
[TimeControl "180+1"]
[EndTime "10:27:37 PDT"]
[Termination "ural58 won by checkmate"]

1. e4 {[%clk 0:03:00.9]} 1... d5 {[%clk 0:02:53.6]} 2. exd5 {[%clk 0:03:00.3]}
2... Qxd5 {[%clk 0:02:53]} 3. Nc3 {[%clk 0:03:00.3]} 3... Qa5 {[%clk 0:02:53.4]}
4. Bc4 {[%clk 0:02:58.4]} 4... Nf6 {[%clk 0:02:53.8]} 5. Nf3 {[%clk 0:02:57.8]}
5... Nc6 {[%clk 0:02:52.7]} 6. O-O {[%clk 0:02:56.8]} 6... Bg4 {[%clk
0:02:52.5]} 7. d4 {[%clk 0:02:54.7]} 7... e6 {[%clk 0:02:49.3]} 8. d5 {[%clk
0:02:53.6]} 8... O-O-O {[%clk 0:02:48.3]} 9. Bg5 {[%clk 0:02:28.1]} 9... Ne5
{[%clk 0:02:38.8]} 10. Bxf6 {[%clk 0:02:15.9]} 10... Bxf3 {[%clk 0:02:34.9]} 11.
gxf3 {[%clk 0:02:13.6]} 11... gxf6 {[%clk 0:02:35.1]} 12. Bb3 {[%clk 0:02:07.3]}
12... Bb4 {[%clk 0:02:25.3]} 13. Qd4 {[%clk 0:02:02]} 13... Bxc3 {[%clk
0:02:22.1]} 14. Qxc3 {[%clk 0:01:54.5]} 14... Qxc3 {[%clk 0:02:22]} 15. bxc3
{[%clk 0:01:55.4]} 15... Nxf3+ {[%clk 0:02:21.9]} 16. Kh1 {[%clk 0:01:55.4]}
16... exd5 {[%clk 0:02:21.3]} 17. Rad1 {[%clk 0:01:53.9]} 17... c6 {[%clk
0:02:20.6]} 18. Rd3 {[%clk 0:01:52.1]} 18... Ne5 {[%clk 0:02:20.7]} 19. Rd4
{[%clk 0:01:51.3]} 19... Rhg8 {[%clk 0:02:20.6]} 20. f4 {[%clk 0:01:50.6]} 20...
Ng4 {[%clk 0:02:18]} 21. Rd3 {[%clk 0:01:35.3]} 21... Rde8 {[%clk 0:02:16.8]}
22. h3 {[%clk 0:01:31.7]} 22... Ne3 {[%clk 0:02:13.5]} 23. Re1 {[%clk
0:01:30.4]} 23... Nf5 {[%clk 0:02:12]} 24. Rg1 {[%clk 0:01:11.9]} 24... Rg6
{[%clk 0:02:07.6]} 25. Rxg6 {[%clk 0:01:02.1]} 25... hxg6 {[%clk 0:02:06.6]} 26.
Kg2 {[%clk 0:00:59.6]} 26... b5 {[%clk 0:02:03.6]} 27. a4 {[%clk 0:00:55.9]}
27... a6 {[%clk 0:02:03.4]} 28. axb5 {[%clk 0:00:55.5]} 28... axb5 {[%clk
0:02:03.6]} 29. Rd2 {[%clk 0:00:46.9]} 29... Kc7 {[%clk 0:02:02.7]} 30. Ba2
{[%clk 0:00:44.7]} 30... Re1 {[%clk 0:01:59.1]} 31. Bb3 {[%clk 0:00:43.3]} 31...
Nd6 {[%clk 0:01:52]} 32. Kf2 {[%clk 0:00:19.4]} 32... Rc1 {[%clk 0:01:45.4]} 33.
Kg2 {[%clk 0:00:18.3]} 33... Ne4 {[%clk 0:01:43.7]} 34. Rd3 {[%clk 0:00:16.2]}
34... f5 {[%clk 0:01:40.1]} 35. Re3 {[%clk 0:00:13.5]} 35... Rd1 {[%clk
0:01:38.1]} 36. Rd3 {[%clk 0:00:12.9]} 36... Rxd3 {[%clk 0:01:37.8]} 37. cxd3
{[%clk 0:00:12.5]} 37... Nxc3 {[%clk 0:01:38.7]} 38. Bc2 {[%clk 0:00:12]} 38...
d4 {[%clk 0:01:37.8]} 39. Bb3 {[%clk 0:00:11.3]} 39... Nd5 {[%clk 0:01:34.4]}
40. Kf3 {[%clk 0:00:10.4]} 40... Kd6 {[%clk 0:01:34.3]} 41. h4 {[%clk
0:00:10.4]} 41... c5 {[%clk 0:01:33.5]} 42. h5 {[%clk 0:00:10]} 42... gxh5
{[%clk 0:01:33.1]} 43. Kg3 {[%clk 0:00:10.3]} 43... f6 {[%clk 0:01:32.6]} 44.
Kh4 {[%clk 0:00:10.3]} 44... Nxf4 {[%clk 0:01:32.7]} 45. Bc2 {[%clk 0:00:07.5]}
45... Ke5 {[%clk 0:01:32.1]} 46. Kg3 {[%clk 0:00:07.5]} 46... c4 {[%clk
0:01:31.1]} 47. dxc4 {[%clk 0:00:06.2]} 47... bxc4 {[%clk 0:01:32]} 48. Bd1
{[%clk 0:00:03.9]} 48... c3 {[%clk 0:01:30.3]} 49. Bc2 {[%clk 0:00:03.9]} 49...
d3 {[%clk 0:01:30.4]} 50. Bb3 {[%clk 0:00:04.1]} 50... c2 {[%clk 0:01:29.8]} 51.
Bxc2 {[%clk 0:00:04.4]} 51... dxc2 {[%clk 0:01:30.1]} 52. Kf2 {[%clk 0:00:03.3]}
52... c1=Q {[%clk 0:01:30.2]} 53. Kg3 {[%clk 0:00:04.2]} 53... Qg1+ {[%clk
0:01:29.6]} 54. Kh4 {[%clk 0:00:02.9]} 54... Qg4# {[%clk 0:01:29.2]} 0-1

[Event "*** Titled Tuesday Blitz"]
[Site "Chess.com"]
[Date "2020.10.27"]
[Round "3"]
[White "verdest"]
[Black "InitiatingASC"]
[Result "1-0"]
[WhiteElo "2638"]
[BlackElo "2410"]
[TimeControl "180+1"]
[EndTime "10:27:39 PDT"]
[Termination "verdest won on time"]

1. d4 {[%clk 0:03:00.9]} 1... Nf6 {[%clk 0:02:59]} 2. c4 {[%clk 0:03:00.7]} 2...
e6 {[%clk 0:02:57.6]} 3. Nf3 {[%clk 0:03:00.3]} 3... c5 {[%clk 0:02:57.4]} 4. d5
{[%clk 0:02:59.3]} 4... exd5 {[%clk 0:02:54.6]} 5. cxd5 {[%clk 0:03:00.2]} 5...
d6 {[%clk 0:02:55]} 6. Nc3 {[%clk 0:03:00.1]} 6... g6 {[%clk 0:02:54.1]} 7. Bf4
{[%clk 0:03:00.1]} 7... a6 {[%clk 0:02:53.5]} 8. e4 {[%clk 0:02:53.5]} 8... Bg7
{[%clk 0:02:50.1]} 9. Bd3 {[%clk 0:02:51.8]} 9... O-O {[%clk 0:02:48.5]} 10. O-O
{[%clk 0:02:49.4]} 10... b5 {[%clk 0:02:48.4]} 11. h3 {[%clk 0:02:47.7]} 11...
Re8 {[%clk 0:02:41.8]} 12. Re1 {[%clk 0:02:47.1]} 12... Qb6 {[%clk 0:02:31.7]}
13. Qd2 {[%clk 0:02:42.9]} 13... Nfd7 {[%clk 0:02:31.1]} 14. a3 {[%clk
0:02:33.1]} 14... c4 {[%clk 0:02:25.3]} 15. Bc2 {[%clk 0:02:31.2]} 15... Nc5
{[%clk 0:02:25.6]} 16. Be3 {[%clk 0:02:30]} 16... Ra7 {[%clk 0:02:19.8]} 17. Bd4
{[%clk 0:02:29.4]} 17... Rae7 {[%clk 0:02:13.5]} 18. Bxg7 {[%clk 0:02:28.3]}
18... Kxg7 {[%clk 0:02:13.6]} 19. e5 {[%clk 0:02:15.9]} 19... Nbd7 {[%clk
0:01:53.7]} 20. e6 {[%clk 0:02:01.5]} 20... fxe6 {[%clk 0:01:52.5]} 21. dxe6
{[%clk 0:02:01.1]} 21... Rxe6 {[%clk 0:01:42.3]} 22. Nd5 {[%clk 0:01:54.4]}
22... Qa7 {[%clk 0:01:33.8]} 23. Qd4+ {[%clk 0:01:47.9]} 23... Ne5 {[%clk
0:01:26.8]} 24. Ng5 {[%clk 0:01:40.1]} 24... Qb7 {[%clk 0:00:58.7]} 25. f4
{[%clk 0:01:33.4]} 25... Kh6 {[%clk 0:00:49.7]} 26. Nxe6 {[%clk 0:01:22.4]}
26... Nxe6 {[%clk 0:00:35.5]} 27. Qd2 {[%clk 0:01:21.4]} 27... Nd3 {[%clk
0:00:35.6]} 28. f5+ {[%clk 0:01:14.6]} 28... Kg7 {[%clk 0:00:31.6]} 29. Bxd3
{[%clk 0:00:53.4]} 29... Qxd5 {[%clk 0:00:29.5]} 30. fxe6 {[%clk 0:00:53.1]}
30... cxd3 {[%clk 0:00:20.4]} 31. Rac1 {[%clk 0:00:46.4]} 31... Bxe6 {[%clk
0:00:19.1]} 32. Rc7+ {[%clk 0:00:45.3]} 32... Kg8 {[%clk 0:00:15.2]} 33. Qc3
{[%clk 0:00:35.7]} 1-0

[Event "*** Titled Tuesday Blitz"]
[Site "Chess.com"]
[Date "2020.10.27"]
[Round "3"]
[White "cassoulet"]
[Black "kuli4ik"]
[Result "0-1"]
[WhiteElo "2671"]
[BlackElo "2889"]
[TimeControl "180+1"]
[EndTime "10:27:41 PDT"]
[Termination "kuli4ik won by resignation"]

1. e4 {[%clk 0:03:00.9]} 1... e6 {[%clk 0:02:55]} 2. d4 {[%clk 0:03:00.2]} 2...
d5 {[%clk 0:02:51.6]} 3. Nc3 {[%clk 0:03:01.1]} 3... Be7 {[%clk 0:02:51.1]} 4.
Nf3 {[%clk 0:03:00.2]} 4... Nf6 {[%clk 0:02:50.6]} 5. exd5 {[%clk 0:02:59.3]}
5... exd5 {[%clk 0:02:50.5]} 6. Bd3 {[%clk 0:02:59.1]} 6... Bg4 {[%clk
0:02:50.4]} 7. h3 {[%clk 0:02:58]} 7... Bh5 {[%clk 0:02:49.9]} 8. O-O {[%clk
0:02:57]} 8... O-O {[%clk 0:02:49.3]} 9. Re1 {[%clk 0:02:56.9]} 9... c5 {[%clk
0:02:47]} 10. dxc5 {[%clk 0:02:56.3]} 10... Bxc5 {[%clk 0:02:46.7]} 11. Bg5
{[%clk 0:02:56.4]} 11... Nc6 {[%clk 0:02:40.2]} 12. Bxf6 {[%clk 0:02:44.6]}
12... Qxf6 {[%clk 0:02:39.1]} 13. Nxd5 {[%clk 0:02:44.5]} 13... Qxb2 {[%clk
0:02:33.6]} 14. Bxh7+ {[%clk 0:02:44.5]} 14... Kxh7 {[%clk 0:02:29]} 15. Ng5+
{[%clk 0:02:44]} 15... Kh6 {[%clk 0:02:25.2]} 16. Qd2 {[%clk 0:02:32.1]} 16...
Qd4 {[%clk 0:02:13.1]} 17. Nxf7+ {[%clk 0:02:01.9]} 17... Kh7 {[%clk 0:02:09.1]}
18. Ng5+ {[%clk 0:01:36.4]} 18... Kg8 {[%clk 0:02:05.6]} 19. Qxd4 {[%clk
0:01:06]} 19... Bxd4 {[%clk 0:02:04.5]} 20. Ne6 {[%clk 0:01:05.1]} 20... Bxf2+
{[%clk 0:01:55.9]} 21. Kh2 {[%clk 0:01:03.3]} 21... Bxe1 {[%clk 0:01:53.7]} 22.
Nxf8 {[%clk 0:01:03.6]} 22... Re8 {[%clk 0:01:38.9]} 23. Nd7 {[%clk 0:00:59.2]}
23... Bh4 {[%clk 0:01:33]} 24. Rb1 {[%clk 0:00:50.4]} 24... b6 {[%clk
0:01:26.8]} 25. Rb5 {[%clk 0:00:44.9]} 25... Be2 {[%clk 0:01:19.2]} 26. Rb1
{[%clk 0:00:33.3]} 26... Rd8 {[%clk 0:01:16.9]} 27. Nf4 {[%clk 0:00:27.6]} 27...
Ba6 {[%clk 0:01:04.8]} 28. Ng6 {[%clk 0:00:21.5]} 28... Bg5 {[%clk 0:00:49.9]}
29. h4 {[%clk 0:00:15.5]} 29... Rxd7 {[%clk 0:00:37.8]} 30. hxg5 {[%clk
0:00:14.4]} 30... Rd5 {[%clk 0:00:34.8]} 31. Re1 {[%clk 0:00:08.8]} 31... Rxg5
{[%clk 0:00:32.9]} 32. Nf4 {[%clk 0:00:09.7]} 32... Kf7 {[%clk 0:00:29.5]} 33.
g3 {[%clk 0:00:08.7]} 33... Re5 {[%clk 0:00:28.1]} 34. Rf1 {[%clk 0:00:08.7]}
0-1